[Event "Nordic Chess-ch 2019"]
[Site "Sarpsborg"]
[Date "2019.06.24"]
[Round "6.26"]
[White "Hanebuth, Katja"]
[Black "Asbjornsen, Jakob"]
[Result "0-1"]
[ECO "A46"]
[WhiteElo "1463"]
[BlackElo "1359"]
[Annotator "NA"]
[PlyCount "84"]
[EventDate "2019.06.21"]
[EventType "swiss"]
[EventCountry "NOR"]
[SourceTitle "playchess.com"]
[Source "ChessBase"]
[SourceQuality "1"]
[TimeControl "40/5400+30:1800+30"]

1. d4 {[%emt 0:00:00]} Nf6 {[%emt 0:00:00]} 2. Nf3 {[%emt 0:00:00]} e6 {[%emt 0:00:09]} 3. e3 {[%emt 0:00:26]} Be7 {[%emt 0:00:43]} 4. Be2 {[%emt 0:00:33]} O-O {[%emt 0:00:46]} 5. O-O {[%emt 0:00:21]} b6 {[%emt 0:01:31]} 6. b3 {[%emt 0:02:50]} Bb7 {[%emt 0:00:39]} 7. Nbd2 {[%emt 0:06:27]} d5 {[%emt 0:02:25]} 8. c4 {[%emt 0:00:59]} Nbd7 {[%emt 0:00:30]} 9. h3 {[%emt 0:02:11]} Re8 {[%emt 0:03:07]} 10. Bb2 {[%emt 0:02:45]} Nf8 {[%emt 0:05:51]} 11. Ne5 {[%emt 0:05:13]} N6d7 {[%emt 0:04:36]} 12. cxd5 {[%emt 0:01:19]} Nxe5 {[%emt 0:01:12]} 13. dxe5 {[%emt 1:13:26]} Bxd5 {[%emt 0:00:50]} 14. Bb5 {[%emt 0:00:00]} Bxg2 {[%emt 1:14:41]} 15. Bxe8 {[%emt 0:00:00]} Bxf1 {[%emt 0:00:00]} 16. Bxf7+ {[%emt 0:00:00]} Kxf7 {[%emt 0:00:00]} 17. Qf3+ {[%emt 0:00:00]} Kg8 {[%emt 0:00:00]} 18. Nxf1 {[%emt 0:00:00]} Ng6 {[%emt 0:00:00]} 19. Rd1 {[%emt 0:00:00]} Qe8 {[%emt 0:00:00]} 20. Rc1 {[%emt 0:00:00]} c5 {[%emt 0:00:00]} 21. Rd1 {[%emt 0:00:00]} Rb8 {[%emt 0:00:00]} 22. Rd2 {[%emt 0:00:00]} Qc8 {[%emt 0:00:00]} 23. Qe2 {[%emt 0:00:00]} Qb7 {[%emt 0:00:00]} 24. f3 {[%emt 0:00:00]} Rf8 {[%emt 0:00:00]} 25. e4 {[%emt 0:00:00]} Qc7 {[%emt 0:00:00]} 26. Nh2 {[%emt 0:00:00]} Nxe5 {[%emt 0:00:00]} 27. Qg2 {[%emt 0:00:00]} Ng6 {[%emt 0:00:00]} 28. Qf1 {[%emt 0:00:00]} Bg5 {[%emt 0:00:00]} 29. Rg2 {[%emt 0:00:00]} Bf4 {[%emt 0:00:00]} 30. Ng4 {[%emt 0:00:00]} e5 {[%emt 0:00:00]} 31. Qc4+ {[%emt 0:01:47]} Kh8 {[%emt 0:00:00]} 32. Kf1 {[%emt 0:04:16]} Qd6 {[%emt 0:00:00]} 33. Qe2 {[%emt 0:02:06]} Re8 {[%emt 0:00:00]} 34. Kg1 {[%emt 0:00:16]} Bg5 {[%emt 0:00:00]} 35. Qf1 {[%emt 0:00:58]} Bf4 {[%emt 0:00:00]} 36. Kh1 {[%emt 0:00:08]} Rd8 {[%emt 0:00:00]} 37. Rf2 {[%emt 0:00:26]} h5 {[%emt 0:00:00]} 38. Nh2 {[%emt 0:00:29]} Bg3 {[%emt 0:00:00]} 39. Rg2 {[%emt 0:00:37]} h4 {[%emt 0:00:00]} 40. Qc1 {[%emt 0:00:39]} Nf4 {[%emt 0:00:00]} 41. Rc2 {[%emt 0:31:30]} Qd1+ {[%emt 0:30:53]} 42. Qxd1 {[%emt 0:00:21]} Rxd1+ {[%emt 0:00:07]} 0-1

[Event "Nordic Chess-ch 2019"]
[Site "Sarpsborg"]
[Date "2019.06.24"]
[Round "6.27"]
[White "Pettersen, Morgan Buckholm"]
[Black "Tenold, Andreas"]
[Result "1-0"]
[ECO "E32"]
[WhiteElo "1508"]
[BlackElo "1959"]
[Annotator "NA"]
[PlyCount "89"]
[EventDate "2019.06.21"]
[EventType "swiss"]
[EventCountry "NOR"]
[SourceTitle "playchess.com"]
[Source "ChessBase"]
[SourceQuality "1"]
[TimeControl "40/5400+30:1800+30"]

1. d4 {[%emt 0:00:00]} Nf6 {[%emt 0:00:00]} 2. c4 {[%emt 0:00:00]} e6 {[%emt 0:00:00]} 3. Nc3 {[%emt 0:00:00]} Bb4 {[%emt 0:00:00]} 4. Qc2 {[%emt 0:00:00]} b6 {[%emt 0:04:36]} 5. a3 {[%emt 0:02:17]} Bxc3+ {[%emt 0:00:07]} 6. Qxc3 {[%emt 0:00:07]} Bb7 {[%emt 0:00:32]} 7. Bg5 {[%emt 0:02:43]} h6 {[%emt 0:03:15]} 8. Bh4 {[%emt 0:00:56]} O-O {[%emt 0:01:32]} 9. e3 {[%emt 0:00:31]} d6 {[%emt 0:02:33]} 10. Ne2 {[%emt 0:00:25]} Nbd7 {[%emt 0:01:02]} 11. Qc2 {[%emt 0:00:35]} c5 {[%emt 0:06:51]} 12. dxc5 {[%emt 0:03:46]} dxc5 {[%emt 0:05:36]} 13. Rd1 {[%emt 0:01:40]} Qe7 {[%emt 0:03:45]} 14. Nc3 {[%emt 0:02:08]} Rad8 {[%emt 0:01:57]} 15. f3 {[%emt 0:01:03]} Ne5 {[%emt 0:03:52]} 16. Rxd8 {[%emt 0:05:10]} Rxd8 {[%emt 0:00:33]} 17. Be2 {[%emt 0:00:06]} Ng6 {[%emt 0:01:08]} 18. Bf2 {[%emt 0:07:00]} e5 {[%emt 0:05:25]} 19. O-O {[%emt 0:03:48]} e4 {[%emt 0:10:36]} 20. f4 {[%emt 0:02:02]} Qe6 {[%emt 0:07:32]} 21. Rd1 {[%emt 0:04:42]} Rd7 {[%emt 0:04:12]} 22. Rxd7 {[%emt 0:01:45]} Nxd7 {[%emt 0:01:10]} 23. Qd1 {[%emt 0:04:20]} Ne7 {[%emt 0:02:15]} 24. h3 {[%emt 0:08:36]} g6 {[%emt 0:03:33]} 25. Qc2 {[%emt 0:07:01]} h5 {[%emt 0:01:08]} 26. Nb1 {[%emt 0:02:16]} f5 {[%emt 0:05:00]} 27. Bh4 {[%emt 0:05:35]} Nc8 {[%emt 0:01:14]} 28. Qc3 {[%emt 0:02:13]} Nd6 {[%emt 0:00:46]} 29. Nd2 {[%emt 0:03:28]} a6 {[%emt 0:03:21]} 30. b3 {[%emt 0:05:38]} b5 {[%emt 0:01:12]} 31. Kf2 {[%emt 0:02:48]} bxc4 {[%emt 0:02:28]} 32. Nxc4 {[%emt 0:04:15]} Bd5 {[%emt 0:03:14]} 33. Nxd6 {[%emt 0:05:25]} Qxd6 {[%emt 0:00:10]} 34. Qd2 {[%emt 0:04:23]} Qe6 {[%emt 0:01:24]} 35. Bxa6 {[%emt 0:01:25]} Bxb3 {[%emt 0:01:32]} 36. Bc8 {[%emt 0:00:31]} Bd5 {[%emt 0:00:42]} 37. Be7 {[%emt 0:02:45]} c4 {[%emt 0:02:06]} 38. Bb4 {[%emt 0:00:34]} Qc6 {[%emt 0:01:04]} 39. Qd4 {[%emt 0:02:24]} Nf6 {[%emt 0:05:10]} 40. Bc3 {[%emt 0:02:40]} Kf7 {[%emt 0:01:42]} 41. Qa7+ {[%emt 0:31:52]} Kg8 {[%emt 0:33:32]} 42. Qe7 {[%emt 0:01:31]} Qxc8 {[%emt 0:00:00]} 43. Qxf6 {[%emt 0:00:00]} Qd7 {[%emt 0:00:00]} 44. Qxg6+ {[%emt 0:00:00]} Kf8 {[%emt 0:00:00]} 45. Bb4+ {[%emt 0:00:00]} 1-0

[Event "Nordic Chess-ch 2019"]
[Site "Sarpsborg"]
[Date "2019.06.24"]
[Round "6.28"]
[White "Holand, Per Fredrik"]
[Black "Kro, Andreas Fuskeland"]
[Result "1/2-1/2"]
[ECO "C14"]
[WhiteElo "1883"]
[BlackElo "1565"]
[Annotator "NA"]
[PlyCount "58"]
[EventDate "2019.06.21"]
[EventType "swiss"]
[EventCountry "NOR"]
[SourceTitle "playchess.com"]
[Source "ChessBase"]
[SourceQuality "1"]
[TimeControl "40/5400+30:1800+30"]

1. e4 {[%emt 0:14:42]} e6 {[%emt 0:00:00]} 2. d4 {[%emt 0:00:04]} d5 {[%emt 0:00:00]} 3. Nc3 {[%emt 0:00:06]} Nf6 {[%emt 0:00:00]} 4. Bg5 {[%emt 0:00:07]} Be7 {[%emt 0:00:32]} 5. e5 {[%emt 0:00:07]} Nfd7 {[%emt 0:00:27]} 6. h4 {[%emt 0:00:07]} c5 {[%emt 0:01:12]} 7. Bxe7 {[%emt 0:06:51]} Qxe7 {[%emt 0:00:44]} 8. Nb5 {[%emt 0:00:13]} Kd8 {[%emt 0:04:06]} 9. Qg4 {[%emt 0:10:05]} f6 {[%emt 0:07:41]} 10. O-O-O {[%emt 0:05:22]} a6 {[%emt 0:03:31]} 11. Nd6 {[%emt 0:05:52]} Nc6 {[%emt 0:07:40]} 12. f4 {[%emt 0:09:37]} Nxd4 {[%emt 0:05:36]} 13. c3 {[%emt 0:13:37]} Nc6 {[%emt 0:02:19]} 14. Nf3 {[%emt 0:00:31]} Kc7 {[%emt 0:06:26]} 15. Bd3 {[%emt 0:14:44]} fxe5 {[%emt 0:08:38]} 16. fxe5 {[%emt 0:00:44]} Ndxe5 {[%emt 0:04:06]} 17. Nxe5 {[%emt 0:02:36]} Nxe5 {[%emt 0:00:09]} 18. Nxc8 {[%emt 0:01:20]} Nxg4 {[%emt 0:03:49]} 19. Nxe7 {[%emt 0:00:07]} Nf2 {[%emt 0:00:13]} 20. Rhf1 {[%emt 0:00:26]} Nxd1 {[%emt 0:00:10]} 21. Kxd1 {[%emt 0:00:06]} Kd7 {[%emt 0:00:12]} 22. Rf7 {[%emt 0:00:15]} Ke8 {[%emt 0:00:26]} 23. Rxg7 {[%emt 0:01:11]} Kf8 {[%emt 0:00:30]} 24. Nf5 {[%emt 0:00:06]} exf5 {[%emt 0:01:25]} 25. Rxb7 {[%emt 0:00:08]} Rg8 {[%emt 0:05:05]} 26. Rxh7 {[%emt 0:13:56]} Rxg2 {[%emt 0:38:03]} 27. Rh8+ {[%emt 0:00:30]} Rg8 {[%emt 0:00:30]} 28. Rxg8+ Kxg8 29. Bxf5 {[%emt 0:01:00]} Kf8 {[%emt 0:01:00]} 1/2-1/2

[Event "Nordic Chess-ch 2019"]
[Site "Sarpsborg"]
[Date "2019.06.24"]
[Round "6.29"]
[White "Skaar, Ben Samuel Groth"]
[Black "Hoiom, Jonas"]
[Result "1-0"]
[ECO "C02"]
[WhiteElo "1362"]
[BlackElo "1317"]
[Annotator "NA"]
[PlyCount "89"]
[EventDate "2019.06.21"]
[EventType "swiss"]
[EventCountry "NOR"]
[SourceTitle "playchess.com"]
[Source "ChessBase"]
[SourceQuality "1"]
[TimeControl "40/5400+30:1800+30"]

1. e4 {[%emt 0:00:00]} e6 {[%emt 0:00:00]} 2. d4 {[%emt 0:00:00]} d5 {[%emt 0:00:00]} 3. e5 {[%emt 0:00:00]} c5 {[%emt 0:00:00]} 4. c3 {[%emt 0:00:00]} Nc6 {[%emt 0:00:00]} 5. Nf3 {[%emt 0:00:00]} Qb6 {[%emt 0:00:07]} 6. Be2 {[%emt 0:00:39]} cxd4 {[%emt 0:01:00]} 7. cxd4 {[%emt 0:00:11]} Bb4+ {[%emt 0:02:51]} 8. Nc3 {[%emt 0:01:21]} Nge7 {[%emt 0:01:13]} 9. O-O {[%emt 0:00:15]} Nf5 {[%emt 0:00:13]} 10. Be3 {[%emt 0:00:56]} Nxe3 {[%emt 0:00:18]} 11. fxe3 {[%emt 0:00:07]} O-O {[%emt 0:09:07]} 12. Qc2 {[%emt 0:04:53]} Bxc3 {[%emt 0:05:56]} 13. bxc3 {[%emt 0:02:16]} Bd7 {[%emt 0:01:53]} 14. Bd3 {[%emt 0:03:34]} h6 {[%emt 0:01:20]} 15. Rf2 {[%emt 0:04:28]} Na5 {[%emt 0:05:34]} 16. Raf1 {[%emt 0:03:15]} Bb5 {[%emt 0:01:29]} 17. Nh4 {[%emt 0:04:50]} Bxd3 {[%emt 0:01:20]} 18. Qxd3 {[%emt 0:00:09]} Qd8 {[%emt 0:05:42]} 19. Ng6 {[%emt 0:04:14]} Qg5 {[%emt 0:04:46]} 20. Nxf8 {[%emt 0:01:48]} Rxf8 {[%emt 0:00:01]} 21. e4 {[%emt 0:01:22]} dxe4 {[%emt 0:03:00]} 22. Qxe4 {[%emt 0:00:11]} Qe7 {[%emt 0:00:27]} 23. d5 {[%emt 0:03:53]} exd5 {[%emt 0:01:11]} 24. Qxd5 {[%emt 0:00:09]} Nc6 {[%emt 0:01:29]} 25. Rb1 {[%emt 0:08:34]} Rd8 {[%emt 0:00:50]} 26. Qf3 {[%emt 0:07:36]} Nxe5 {[%emt 0:05:26]} 27. Qxb7 {[%emt 0:00:51]} Rd7 {[%emt 0:00:08]} 28. Qb4 {[%emt 0:06:35]} Nc6 {[%emt 0:08:15]} 29. Qxe7 {[%emt 0:01:28]} Rxe7 {[%emt 0:01:03]} 30. h3 {[%emt 0:04:52]} Re3 {[%emt 0:00:15]} 31. Rc1 {[%emt 0:02:15]} Ne5 {[%emt 0:00:23]} 32. Rd2 {[%emt 0:01:32]} Nc4 {[%emt 0:05:11]} 33. Rd4 {[%emt 0:03:53]} Nb6 {[%emt 0:00:11]} 34. Kf2 {[%emt 0:00:09]} Re5 {[%emt 0:00:47]} 35. Rc2 {[%emt 0:03:07]} Kf8 {[%emt 0:02:57]} 36. Kf3 {[%emt 0:00:55]} Ke7 {[%emt 0:00:06]} 37. Re4 {[%emt 0:00:06]} Kd6 {[%emt 0:00:31]} 38. Rd2+ {[%emt 0:00:55]} Ke6 {[%emt 0:00:53]} 39. Rxe5+ {[%emt 0:00:59]} Kxe5 {[%emt 0:00:02]} 40. Re2+ {[%emt 0:00:27]} Kd6 {[%emt 0:00:02]} 41. Re8 {[%emt 0:31:40]} Nd5 {[%emt 0:32:03]} 42. Ra8 {[%emt 0:01:28]} Nxc3 {[%emt 0:00:14]} 43. Rxa7 {[%emt 0:00:07]} Ke6 {[%emt 0:00:09]} 44. a4 {[%emt 0:00:38]} Nd5 {[%emt 0:00:21]} 45. Rb7 {[%emt 0:00:37]} 1-0

[Event "Nordic Chess-ch 2019"]
[Site "Sarpsborg"]
[Date "2019.06.24"]
[Round "6.30"]
[White "Nizar, Siako"]
[Black "Berisha, Xhafer"]
[Result "0-1"]
[ECO "A36"]
[WhiteElo "1209"]
[BlackElo "1340"]
[Annotator "NA"]
[PlyCount "46"]
[EventDate "2019.06.21"]
[EventType "swiss"]
[EventCountry "NOR"]
[SourceTitle "playchess.com"]
[Source "ChessBase"]
[SourceQuality "1"]
[TimeControl "40/5400+30:1800+30"]

1. c4 {[%emt 0:00:00]} e6 {[%emt 0:01:15]} 2. Nc3 {[%emt 0:00:16]} c5 {[%emt 0:00:21]} 3. e4 {[%emt 0:00:12]} Nc6 {[%emt 0:00:13]} 4. g3 {[%emt 0:00:38]} Nf6 {[%emt 0:00:07]} 5. Bg2 {[%emt 0:00:03]} Nd4 {[%emt 0:00:32]} 6. Nge2 {[%emt 0:00:36]} e5 {[%emt 0:00:39]} 7. O-O {[%emt 0:00:18]} Be7 {[%emt 0:00:07]} 8. f4 {[%emt 0:00:15]} d6 {[%emt 0:00:34]} 9. h3 {[%emt 0:00:21]} Bd7 {[%emt 0:00:23]} 10. d3 {[%emt 0:00:20]} a6 {[%emt 0:01:24]} 11. a4 {[%emt 0:00:41]} g6 {[%emt 0:00:38]} 12. Nd5 {[%emt 0:00:13]} Bc6 {[%emt 0:00:53]} 13. Nec3 {[%emt 0:00:24]} O-O {[%emt 0:00:31]} 14. Ne2 {[%emt 0:00:50]} Nh5 {[%emt 0:00:32]} 15. Nxd4 {[%emt 0:00:12]} cxd4 {[%emt 0:00:12]} 16. Kh2 {[%emt 0:00:30]} Bxd5 {[%emt 0:01:38]} 17. cxd5 {[%emt 0:00:06]} exf4 {[%emt 0:01:42]} 18. Bxf4 {[%emt 0:01:17]} Nxf4 {[%emt 0:00:25]} 19. Rxf4 {[%emt 0:00:13]} Bf6 {[%emt 0:00:24]} 20. Qf3 {[%emt 0:00:24]} Be5 {[%emt 0:00:00]} 21. Rg4 {[%emt 0:01:03]} h5 {[%emt 0:00:14]} 22. Rh4 {[%emt 0:00:13]} Qxh4 {[%emt 0:00:22]} 23. Kh1 {[%emt 0:00:33]} Bxg3 {[%emt 0:00:25]} 0-1

[Event "Nordic Chess-ch 2019"]
[Site "Sarpsborg"]
[Date "2019.06.24"]
[Round "6.31"]
[White "Kirppo, Ronny"]
[Black "Ulrichsen, Jarl H"]
[Result "0-1"]
[ECO "E01"]
[WhiteElo "1910"]
[BlackElo "2180"]
[Annotator "NA"]
[PlyCount "90"]
[EventDate "2019.06.21"]
[EventType "swiss"]
[EventCountry "NOR"]
[SourceTitle "playchess.com"]
[Source "ChessBase"]
[SourceQuality "1"]
[TimeControl "40/5400+30:1800+30"]

1. d4 {[%emt 0:00:00]} Nf6 {[%emt 0:00:06]} 2. c4 {[%emt 0:00:00]} e6 {[%emt 0:00:18]} 3. Nf3 {[%emt 0:00:13]} d5 {[%emt 0:04:51]} 4. g3 {[%emt 0:01:05]} c6 {[%emt 0:06:11]} 5. Bg2 {[%emt 0:03:17]} Nbd7 {[%emt 0:00:46]} 6. cxd5 {[%emt 0:04:46]} exd5 {[%emt 0:01:58]} 7. Nc3 {[%emt 0:01:35]} Bd6 {[%emt 0:04:33]} 8. O-O {[%emt 0:01:31]} O-O {[%emt 0:00:13]} 9. Qc2 {[%emt 0:08:07]} Re8 {[%emt 0:04:27]} 10. Bf4 {[%emt 0:18:06]} Nf8 {[%emt 0:11:01]} 11. Bxd6 {[%emt 0:05:55]} Qxd6 {[%emt 0:00:07]} 12. Ne5 {[%emt 0:00:36]} Ng4 {[%emt 0:15:12]} 13. Nxg4 {[%emt 0:06:56]} Bxg4 {[%emt 0:00:23]} 14. Rfe1 {[%emt 0:01:47]} Ne6 {[%emt 0:02:23]} 15. Qd2 {[%emt 0:03:57]} Qb4 {[%emt 0:04:10]} 16. Rad1 {[%emt 0:00:57]} f5 {[%emt 0:11:05]} 17. f3 {[%emt 0:05:50]} Bh5 {[%emt 0:00:25]} 18. e3 {[%emt 0:02:07]} Rad8 {[%emt 0:04:12]} 19. Rf1 {[%emt 0:09:54]} g5 {[%emt 0:05:31]} 20. Rfe1 {[%emt 0:05:47]} h6 {[%emt 0:04:11]} 21. Kh1 {[%emt 0:01:51]} Qf8 {[%emt 0:01:55]} 22. Rc1 {[%emt 0:03:24]} f4 {[%emt 0:04:04]} 23. exf4 {[%emt 0:00:20]} gxf4 {[%emt 0:00:07]} 24. g4 {[%emt 0:00:08]} Bg6 {[%emt 0:01:04]} 25. Re5 {[%emt 0:00:59]} Nc7 {[%emt 0:02:03]} 26. Rce1 {[%emt 0:00:10]} Rxe5 {[%emt 0:00:06]} 27. Rxe5 {[%emt 0:00:23]} Re8 {[%emt 0:00:36]} 28. Ne2 {[%emt 0:02:34]} Rxe5 {[%emt 0:00:36]} 29. dxe5 {[%emt 0:00:01]} Ne6 {[%emt 0:00:36]} 30. Bf1 {[%emt 0:00:43]} Qc5 {[%emt 0:03:16]} 31. Kg2 {[%emt 0:02:55]} Qe3 {[%emt 0:00:14]} 32. Qxe3 {[%emt 0:03:15]} fxe3 {[%emt 0:00:02]} 33. f4 {[%emt 0:01:43]} Be4+ {[%emt 0:00:07]} 34. Kg3 {[%emt 0:00:06]} Bd3 {[%emt 0:08:00]} 35. Kf3 {[%emt 0:03:04]} d4 {[%emt 0:00:54]} 36. Nxd4 {[%emt 0:00:06]} Nxd4+ {[%emt 0:00:03]} 37. Kxe3 {[%emt 0:00:19]} Bxf1 {[%emt 0:00:02]} 38. Kxd4 {[%emt 0:00:08]} Bh3 {[%emt 0:00:47]} 39. e6 {[%emt 0:00:32]} Bxg4 {[%emt 0:01:02]} 40. Ke5 {[%emt 0:00:12]} c5 {[%emt 0:01:30]} 41. f5 {[%emt 0:32:52]} c4 {[%emt 0:30:50]} 42. f6 {[%emt 0:01:05]} b5 {[%emt 0:00:00]} 43. Kd6 {[%emt 0:00:00]} Kf8 {[%emt 0:00:00]} 44. e7+ {[%emt 0:00:00]} Kf7 {[%emt 0:00:00]} 45. Kc7 {[%emt 0:00:00]} Bh5 {[%emt 0:00:00]} 0-1

[Event "Nordic Chess-ch 2019"]
[Site "Sarpsborg"]
[Date "2019.06.24"]
[Round "6.32"]
[White "Eriksson, Kristian"]
[Black "Dogani, Avduraim"]
[Result "1-0"]
[ECO "C42"]
[WhiteElo "2111"]
[BlackElo "2107"]
[Annotator "NA"]
[PlyCount "81"]
[EventDate "2019.06.21"]
[EventType "swiss"]
[EventCountry "NOR"]
[SourceTitle "playchess.com"]
[Source "ChessBase"]
[SourceQuality "1"]
[TimeControl "40/5400+30:1800+30"]

1. e4 {[%emt 0:00:00]} e5 {[%emt 0:00:00]} 2. Nf3 {[%emt 0:00:09]} Nf6 {[%emt 0:00:00]} 3. Nxe5 {[%emt 0:00:08]} d6 {[%emt 0:00:07]} 4. Nc4 {[%emt 0:00:07]} Nxe4 {[%emt 0:00:31]} 5. Nc3 {[%emt 0:00:07]} Nf6 {[%emt 0:00:43]} 6. d4 {[%emt 0:01:19]} Be7 {[%emt 0:02:59]} 7. Bd3 {[%emt 0:06:10]} Nc6 {[%emt 0:04:39]} 8. d5 {[%emt 0:02:42]} Nb4 {[%emt 0:04:35]} 9. Be2 {[%emt 0:01:49]} c6 {[%emt 0:05:16]} 10. Ne3 {[%emt 0:07:08]} a5 {[%emt 0:03:38]} 11. Bf3 {[%emt 0:03:20]} Bd7 {[%emt 0:06:04]} 12. O-O {[%emt 0:05:12]} O-O {[%emt 0:00:16]} 13. b3 {[%emt 0:00:56]} Rc8 {[%emt 0:00:58]} 14. Bb2 {[%emt 0:02:10]} Re8 {[%emt 0:03:31]} 15. a3 {[%emt 0:07:28]} Na6 {[%emt 0:01:58]} 16. Qd4 {[%emt 0:01:28]} Nc7 {[%emt 0:03:27]} 17. Rfd1 {[%emt 0:05:04]} Bf8 {[%emt 0:04:55]} 18. Rac1 {[%emt 0:02:39]} c5 {[%emt 0:07:21]} 19. Qf4 {[%emt 0:02:59]} b5 {[%emt 0:01:27]} 20. Ne2 {[%emt 0:01:33]} Na8 {[%emt 0:03:09]} 21. Ng3 {[%emt 0:02:17]} c4 {[%emt 0:01:20]} 22. bxc4 {[%emt 0:01:17]} bxc4 {[%emt 0:00:03]} 23. Nxc4 {[%emt 0:01:08]} Bb5 {[%emt 0:01:33]} 24. Ne3 {[%emt 0:00:52]} Nd7 {[%emt 0:01:56]} 25. Bh5 {[%emt 0:12:43]} g6 {[%emt 0:07:05]} 26. Bg4 {[%emt 0:00:23]} Ne5 {[%emt 0:12:54]} 27. Bxc8 {[%emt 0:01:01]} Qxc8 {[%emt 0:01:02]} 28. Ne4 {[%emt 0:01:18]} Be7 {[%emt 0:02:02]} 29. Nf6+ {[%emt 0:01:34]} Bxf6 {[%emt 0:00:30]} 30. Qxf6 {[%emt 0:00:04]} Qd8 {[%emt 0:00:32]} 31. Ng4 {[%emt 0:00:54]} h5 {[%emt 0:01:20]} 32. Bxe5 {[%emt 0:07:14]} dxe5 {[%emt 0:00:03]} 33. Nh6+ {[%emt 0:00:39]} Kh7 {[%emt 0:00:26]} 34. Qxd8 {[%emt 0:00:04]} Rxd8 {[%emt 0:00:11]} 35. Nxf7 {[%emt 0:00:06]} Rb8 {[%emt 0:00:14]} 36. Nxe5 {[%emt 0:01:32]} Re8 {[%emt 0:00:10]} 37. Re1 {[%emt 0:01:59]} Nb6 {[%emt 0:00:08]} 38. c4 {[%emt 0:00:45]} Bxc4 {[%emt 0:00:29]} 39. Nxc4 {[%emt 0:00:16]} Rxe1+ {[%emt 0:00:05]} 40. Rxe1 {[%emt 0:00:09]} Nxc4 {[%emt 0:00:05]} 41. Rc1 {[%emt 0:31:22]} 1-0

[Event "Nordic Chess-ch 2019"]
[Site "Sarpsborg"]
[Date "2019.06.24"]
[Round "6.33"]
[White "Hauge, Tor Arne"]
[Black "Store, Trond"]
[Result "0-1"]
[ECO "B20"]
[WhiteElo "2022"]
[BlackElo "2100"]
[Annotator "NA"]
[PlyCount "110"]
[EventDate "2019.06.21"]
[EventType "swiss"]
[EventCountry "NOR"]
[SourceTitle "playchess.com"]
[Source "ChessBase"]
[SourceQuality "1"]
[TimeControl "40/5400+30:1800+30"]

1. e4 {[%emt 0:00:23]} c5 {[%emt 0:00:00]} 2. d3 {[%emt 0:00:50]} e6 {[%emt 0:07:01]} 3. g3 {[%emt 0:03:01]} b5 {[%emt 0:02:16]} 4. Bg2 {[%emt 0:01:52]} Bb7 {[%emt 0:00:07]} 5. Nh3 {[%emt 0:09:57]} Nf6 {[%emt 0:04:04]} 6. O-O {[%emt 0:05:00]} d5 {[%emt 0:03:07]} 7. Nd2 {[%emt 0:05:05]} Be7 {[%emt 0:02:47]} 8. e5 {[%emt 0:06:20]} Nfd7 {[%emt 0:00:52]} 9. f4 {[%emt 0:00:27]} g6 {[%emt 0:02:14]} 10. Nf3 {[%emt 0:03:44]} Nc6 {[%emt 0:01:37]} 11. c3 {[%emt 0:07:42]} Nb6 {[%emt 0:03:02]} 12. g4 {[%emt 0:10:25]} h5 {[%emt 0:02:19]} 13. Nfg5 {[%emt 0:02:26]} hxg4 {[%emt 0:02:10]} 14. Qxg4 {[%emt 0:00:19]} Qd7 {[%emt 0:06:50]} 15. Bd2 {[%emt 0:09:59]} Bxg5 {[%emt 0:02:55]} 16. Qxg5 {[%emt 0:05:28]} Qe7 {[%emt 0:02:16]} 17. Qxe7+ {[%emt 0:00:51]} Nxe7 {[%emt 0:00:33]} 18. Ng5 {[%emt 0:02:21]} Nf5 {[%emt 0:01:45]} 19. b3 {[%emt 0:01:55]} O-O {[%emt 0:10:06]} 20. c4 {[%emt 0:04:16]} bxc4 {[%emt 0:01:29]} 21. dxc4 {[%emt 0:04:40]} Rad8 {[%emt 0:02:21]} 22. Rf2 {[%emt 0:02:01]} Rd7 {[%emt 0:02:45]} 23. Ba5 {[%emt 0:02:44]} dxc4 {[%emt 0:08:38]} 24. Bxb6 {[%emt 0:00:08]} axb6 {[%emt 0:00:05]} 25. Bxb7 {[%emt 0:00:15]} Rxb7 {[%emt 0:00:03]} 26. bxc4 {[%emt 0:00:12]} Rd8 {[%emt 0:00:58]} 27. Rc1 {[%emt 0:04:46]} Rd4 {[%emt 0:01:10]} 28. Rf3 {[%emt 0:01:31]} Ra7 {[%emt 0:02:13]} 29. a3 {[%emt 0:00:33]} Ra4 {[%emt 0:00:38]} 30. Rb1 {[%emt 0:00:51]} Raxc4 {[%emt 0:03:02]} 31. Rxb6 {[%emt 0:00:21]} Rxf4 {[%emt 0:02:51]} 32. Rxf4 {[%emt 0:01:05]} Rxf4 {[%emt 0:00:03]} 33. Nxe6 {[%emt 0:00:30]} fxe6 {[%emt 0:00:44]} 34. Rxe6 {[%emt 0:00:07]} Kf7 {[%emt 0:00:49]} 35. Rf6+ {[%emt 0:00:13]} Kg7 {[%emt 0:00:10]} 36. Rc6 {[%emt 0:00:08]} Ne3 {[%emt 0:01:36]} 37. h3 {[%emt 0:00:32]} c4 {[%emt 0:00:52]} 38. a4 {[%emt 0:00:10]} Rf1+ {[%emt 0:01:45]} 39. Kh2 {[%emt 0:00:02]} Ra1 {[%emt 0:00:25]} 40. Kg3 {[%emt 0:00:08]} Rxa4 {[%emt 0:04:26]} 41. Kf4 {[%emt 0:30:13]} Nd5+ {[%emt 0:30:19]} 42. Kg5 {[%emt 0:00:42]} Ne7 {[%emt 0:00:17]} 43. Re6 {[%emt 0:00:00]} Kf7 {[%emt 0:00:00]} 44. Rf6+ {[%emt 0:00:00]} Ke8 {[%emt 0:00:00]} 45. Rf4 {[%emt 0:00:00]} Kd7 {[%emt 0:00:00]} 46. h4 {[%emt 0:00:00]} Ke6 {[%emt 0:00:00]} 47. Re4 {[%emt 0:00:00]} Kd5 {[%emt 0:00:00]} 48. Re1 {[%emt 0:00:00]} Ra6 {[%emt 0:00:00]} 49. Kf4 {[%emt 0:00:00]} c3 {[%emt 0:00:00]} 50. Rd1+ {[%emt 0:00:00]} Ke6 {[%emt 0:00:00]} 51. Rc1 {[%emt 0:00:00]} Rc6 {[%emt 0:00:00]} 52. Rc2 {[%emt 0:00:00]} Rc4+ {[%emt 0:00:00]} 53. Ke3 {[%emt 0:00:00]} Rxh4 {[%emt 0:00:00]} 54. Kd3 {[%emt 0:00:00]} Nd5 {[%emt 0:00:00]} 55. Rf2 {[%emt 0:00:00]} Kxe5 {[%emt 0:00:00]} 0-1